Cogmind - Beta 16 @@@ ROGUE MODE // 2025.11.02 @ 05:44:51 Player: Red Box Result: Destroyed by Optimus with Helical Railgun Performance ------------- Evolutions (0) 0 Regions Visited (3) 600 Robots Destroyed (25) 125 Value Destroyed (593) 593 Prototype IDs (10) 200 Alien Tech Used (0) 0 Bonus (800) 800 TOTAL SCORE: 2318 Bonus ------- Registered with UFD 300 Met Optimus in HQ 500 Cogmind --------- Core Integrity 0/250 Matter 295/300 Energy 310/310 System Corruption 0% Temperature Cool (0) Movement Core (950) Ox18 Location -8/Scraptown Parts ------- > --- POWER (1) -------- Fission Core > --- PROPULSION (2) --- (None) > --- UTILITY (2) ------ High-capacity Storage Unit Makeshift Light Armor Plating > --- WEAPON (2) ------- Heavy Flail > --- INVENTORY (20) --- Armored Treads Wheel Scrap Suit Advanced Heat Sink Machine Analyzer Surveybot 17 Chip Improved Particle Charger Layered Medium Armor Plating Focal Shield Improved System Shield Scrapoid Pod EM Pulse Gun EM Pulse Gun EM Pulse Gun Improved Light Cannon Advanced Assault Cannon Heavy Flak Cannon Mini Grenade Launcher Peak State ------------ > --- POWER ------------ Fission Core > --- PROPULSION ------- Compact Wheel Compact Wheel > --- UTILITY ---------- High-capacity Storage Unit Makeshift Light Armor Plating > --- WEAPON ----------- EM Pulse Gun Heavy Flail > --- INVENTORY -------- Armored Treads Wheel Scrap Suit Advanced Heat Sink Machine Analyzer Surveybot 17 Chip Improved Particle Charger Layered Medium Armor Plating Focal Shield Improved System Shield Scrapoid Pod EM Pulse Gun EM Pulse Gun EM Pulse Gun Improved Light Cannon Advanced Assault Cannon Heavy Flak Cannon Mini Grenade Launcher [Rating: 23] Favorites ----------- Power Ion Engine Engine Ion Engine Power Core Fission Core Propulsion Aluminum Leg Leg Aluminum Leg Wheel Compact Wheel Utility High-capacity Storage Unit Device Improved Terrain Scanner Storage High-capacity Storage Unit Processor Improved Targeting Computer Protection Makeshift Light Armor Plating Weapon EM Pulse Gun Energy Gun EM Pulse Gun Ballistic Gun Assault Rifle Ballistic Cannon Light Cannon Launcher Grenade Launcher Special Weapon Mining Laser Impact Weapon Heavy Flail Build | -11 -10 -10 -8 ------- Run | Yrd Mat Sub Scr Slots Evolved . | . . . . Power . | . . . . Propulsion . | . . . . Utility . | . . . . Weapon . | . . . . Parts Attached 38 | 7 19 1 11 Power 4 | 1 2 . 1 Engine 3 | 1 2 . . Core 1 | . . . 1 Reactor . | . . . . Propulsion 11 | 2 5 . 4 Treads . | . . . . Leg 7 | 2 5 . . Wheel 4 | . . . 4 Hover . | . . . . Flight . | . . . . Utility 10 | 2 4 1 3 Device 2 | 1 1 . . Storage 4 | 1 2 . 1 Processor 1 | . 1 . . Hackware . | . . . . Protection 3 | . . 1 2 Artifact . | . . . . Weapon 13 | 2 8 . 3 Energy Gun 5 | . 5 . . Energy Cannon . | . . . . Ballistic Gun 2 | 2 . . . Ballistic Cannon 3 | . 1 . 2 Launcher 1 | . 1 . . Special Weapon 1 | . 1 . . Impact Weapon 1 | . . . 1 Slashing Weapon . | . . . . Piercing Weapon . | . . . . Special Melee Weapon . | . . . . Unidentified Prototypes . | . . . . Parts Lost 7 | . 3 1 3 Power . | . . . . Propulsion 2 | . . . 2 Utility 2 | . 1 1 . Weapon 3 | . 2 . 1 Highest Loss Streak 3 | . 2 1 3 To Critical Strikes . | . . . . Average Backups 15 | 4 10 14 18 Power . | . . . . Propulsion 3 | 3 4 4 2 Utility 4 | . 2 3 6 Weapon 6 | 1 3 7 7 Tool/Special . | . . . . Unused Backups 26 | . 4 . 22 Power 1 | . . . 1 Propulsion 5 | . 4 . 1 Utility 11 | . . . 11 Weapon 8 | . . . 8 Tool/Special 1 | . . . 1 Average Slot Usage (%) 97 | . 97 91 99 Engine 11 | . 14 14 9 Core 2 | . . . 4 Leg 16 | . 28 28 6 Wheel 11 | . . . 21 Device 2 | . 10 . . Storage 14 | . 14 14 14 Processor 1 | . 3 5 . Protection 7 | . . . 14 Energy Gun 24 | . 15 28 27 Ballistic Gun 1 | . 6 . . Peak Build Rating 23 | 9 10 11 23 Average Rating 11 | 5 8 7 14 On Entrance 7 | . 9 9 11 Avg Prop Armor Cover (%) . | . . . . Naked Turns . | . . . . Heaviest Build 63 | 14 29 33 63 Greatest Support 32 | 20 20 20 32 Greatest Overweight (x) 3 | 3 1 1 3 Average Overweight (x) . | . . 1 1 Largest Inventory Capacity 20 | 8 15 15 20 Average Capacity 15 | 7 10 15 18 Most Carried 20 | 6 15 15 20 Average Carried 15 | 5 10 14 18 Final Capacity 20 | 8 15 15 20 Final Carried 20 | 6 15 15 20 Class Distribution -------------------- 93% | Mutant 6% | Scavenger-Mutant Dominant Class ---------------- Mutant | -10/Materials Mutant | -10/Subcaves Mutant | -8/Scraptown Resources | -11 -10 -10 -8 ----------- Run | Yrd Mat Sub Scr Matter Collected 1033 | 318 501 64 150 Remotely . | . . . . Salvage Created 830 | 124 648 58 . Parts 47 | 8 36 3 . Haulers Intercepted 1 | . 1 . . Recyclers Shooed 1 | . 1 . . Parts Field Recycled . | . . . . Retrieved Matter . | . . . . Parts Self-Destructed 2 | . . 2 . Prevented 1 | . . 1 . Parts Restored . | . . . . Kills | -11 -10 -10 -8 ------- Run | Yrd Mat Sub Scr Combat Hostiles Destroyed 15 | . 14 1 . Guns 11 | . 10 1 . AOE 4 | . 4 . . Classes Destroyed 9 | 2 6 1 . Builder 1 | . 1 . . Tunneler 3 | 3 . . . Hauler 1 | . 1 . . Recycler 2 | 1 1 . . Mechanic 1 | . 1 . . Watcher 2 | . 2 . . Swarmer 3 | . 3 . . Grunt 11 | . 11 . . Sentry 1 | . . 1 . Best Kill Streak 8 | 2 8 1 . Combat Bots Only 5 | . 5 1 . Max Kills in Single Turn 2 | 1 2 1 . Gunslinging . | . . . . Exploded 2 | . 2 . . Melee . | . . . . Uniques/NPCs Destroyed . | . . . . Combat | -11 -10 -10 -8 -------- Run | Yrd Mat Sub Scr Hostile Shots Fired 87 | . 63 2 22 Missed 16 | . 11 1 4 Hits 71 | . 52 1 18 Projectile 71 | . 52 1 18 Damage Taken 1230 | . 669 74 487 Core 256 | . 117 . 139 Absorbed by Shields . | . . . . Regen/Repaired (Parts) 333 | . . . 333 Core Remaining (%) 100 | 100 . . . Volleys Fired 61 | 12 48 1 . Largest 2 | 2 2 2 . Hottest 100 | 40 100 80 . Shots Fired 109 | 24 82 3 . Gun 95 | 24 68 3 . Cannon 10 | . 10 . . Launcher 2 | . 2 . . Special 2 | . 2 . . Kinetic 60 | 24 36 . . Thermal 25 | . 25 . . Explosive 2 | . 2 . . Electromagnetic 22 | . 19 3 . Robot Hit Streak 8 | 4 8 8 . Robot Miss Streak 4 | 4 3 . . Penetration Max . | . . . . Secondary Targets 1 | . 1 . . Max Gunslinging Chain 1 | . 1 . . Shots Hit Robots 72 | 12 53 2 5 Core Hits 41 | 6 33 2 . Critical Kills 1 | . 1 . . Critical Parts Destroyed . | . . . . Critical Strikes 3 | . 3 . . Burn 1 | . 1 . . Destroy 1 | . 1 . . Corrupt 1 | . 1 . . Melee Attacks 9 | . . . 9 Impact 9 | . . . 9 Slashing . | . . . . Piercing . | . . . . Sneak Attacks . | . . . . Combat Hostiles . | . . . . Follow-up Attacks . | . . . . Damage Inflicted 1492 | 151 1111 23 207 Guns 776 | 151 602 23 . Cannons 119 | . 119 . . Explosions 390 | . 390 . . Melee 207 | . . . 207 Ramming . | . . . . Kinetic 475 | 151 324 . . Thermal 364 | . 364 . . Explosive 247 | . 247 . . Electromagnetic 199 | . 176 23 . Impact 207 | . . . 207 Slashing . | . . . . Piercing . | . . . . Highest Corruption 2 | . 2 2 . Average Corruption 2 | . 2 2 . Corruption Purged . | . . . . Corruption Blocked . | . . . . Effects 21 | . 10 11 . Message Errors 4 | . 1 3 . Matter Fused 3 | . 1 2 . Heat Flow Errors 3 | . 2 1 . Energy Discharges 5 | . 4 1 . Data Loss (minor) 1 | . . 1 . Data Loss (major) 2 | . 1 1 . Misfires 1 | . . 1 . Alerts 2 | . 1 1 . Overload Shots . | . . . . Overflow Damage 12 | . 12 . . Projectiles . | . . . . Explosions 12 | . 12 . . Melee . | . . . . Knockbacks 2 | . 2 . . Impact . | . . . . Kinetic 2 | . 2 . . Secondary . | . . . . Self-Inflicted Damage 79 | . 79 . . Shots 2 | . 2 . . Rammed . | . . . . Targets Rammed . | . . . . Kicked . | . . . . Crushed . | . . . . Highest Temperature 264 | . 264 180 . Average Temperature 60 | . 59 102 . Received Heat Transfer 315 | . 315 . . Siege Activations . | . . . . Martial Activations . | . . . . Shielding Activations . | . . . . Robots Disrupted . | . . . . Combat Hostiles . | . . . . Robots Corrupted . | . . . . Combat Hostiles . | . . . . Parts Fried 1 | . 1 . . Impact Corruptions . | . . . . Robots Melted . | . . . . Combat Hostiles . | . . . . Parts Melted . | . . . . Heat Transferred 903 | . 903 . . Parts Sabotaged . | . . . . Parts Stolen . | . . . . Parts Stripped . | . . . . Power Chain Reactions 2 | . 2 . . Alert | -11 -10 -10 -8 ------- Run | Yrd Mat Sub Scr Maximum Alert Level 1 | . 1 . . Low Security (%) 84 | 100 81 . . Level 1 15 | . 18 . . Level 2 . | . . . . Level 3 . | . . . . Level 4 . | . . . . Level 5 . | . . . . High Security . | . . . . Max Security . | . . . . Peak Influence 310 | 10 310 . . Initial . | . . . . Average 92 | . 105 . . Influence Increases 583 | 20 543 20 . Destroy 0b10 Robot/C 300 | . 280 20 . Destroy 0b10 Robot/NC 50 | 20 30 . . Destroy Leader 76 | . 76 . . Successful Hack 62 | . 62 . . Select Force Hacks 30 | . 30 . . Disable Machine 30 | . 30 . . Destroy Structure 20 | . 20 . . Partial Spotted 15 | . 15 . . Influence Decreases 583 | 20 457 106 . Entered New Map 42 | . . 42 . Time Decay 361 | 20 277 64 . Lost Part 30 | . 30 . . Purge Threat 150 | . 150 . . Squads Dispatched 4 | . 4 . . Investigation 3 | . 3 . . Extermination . | . . . . Reinforcement 1 | . 1 . . Assault . | . . . . Garrison . | . . . . Intercept . | . . . . Searches Triggered . | . . . . Construction Impeded . | . . . . Haulers Reinforced . | . . . . Active Scanning Responses . | . . . . Cargo Convoy Interrupts . | . . . . Stealth | -11 -10 -10 -8 --------- Run | Yrd Mat Sub Scr Distress Signals . | . . . . Communications Jammed . | . . . . Distress Signals . | . . . . Times Spotted 25 | . 21 1 3 Peak Tracking Total 6 | . 6 1 4 Tactical Retreats . | . . . . Traps | -11 -10 -10 -8 ------- Run | Yrd Mat Sub Scr Traps Triggered 2 | . 1 1 . Indirectly . | . . . . Trap Hack Attempts . | . . . . Triggered . | . . . . Disarmed . | . . . . Reprogrammed . | . . . . Reused . | . . . . Traps Extracted . | . . . . Installed . | . . . . Triggered . | . . . . Machines | -11 -10 -10 -8 ---------- Run | Yrd Mat Sub Scr Machines Disabled 2 | . 2 . . Max in Single Turn 1 | . 1 . . Machines Repaired . | . . . . Machines Dismantled . | . . . . Machines Sabotaged . | . . . . Overloaded Fab Kills . | . . . . Hacking | -11 -10 -10 -8 --------- Run | Yrd Mat Sub Scr Machines Accessed 16 | . 9 1 6 Terminals 7 | . 7 . . Fabricators . | . . . . Repair Stations 1 | . 1 . . Recycling Units 1 | . 1 . . Scanalyzers . | . . . . Garrison Access . | . . . . Total Hacks 70 | . 39 4 27 Successful 55 | . 24 4 27 Failed 14 | . 14 . . Catastrophic 1 | . 1 . . Database Lockouts 1 | . 1 . . Manual 29 | . 29 . . Terminals 32 | . 32 . . Fabricators . | . . . . Repair Stations 1 | . 1 . . Recycling Units 6 | . 6 . . Scanalyzers . | . . . . Garrison Access . | . . . . Terminal Hacks 42 | . 11 4 27 Record 30 | . . 4 26 Robot Analysis 6 | . 6 . . Prototype ID Bank 1 | . 1 . . Unreport Threat 1 | . 1 . . Locate Traps 2 | . 2 . . Transport Status 1 | . 1 . . Proto ID Catalog 1 | . . . 1 Fabricator Hacks . | . . . . Repair Station Hacks . | . . . . Recycling Unit Hacks 1 | . 1 . . Retrieve Components 1 | . 1 . . Scanalyzer . | . . . . Garrison Access Hacks . | . . . . Unauthorized Hacks 11 | . 11 . . Terminals 8 | . 8 . . Track 1 | . 1 . . Botnet 5 | . 5 . . Disrupt 1 | . 1 . . Operators 1 | . 1 . . Fabricators . | . . . . Repair Stations . | . . . . Recycling Units 3 | . 3 . . Reject 1 | . 1 . . Mask 1 | . 1 . . Tunnel 1 | . 1 . . Scanalyzers . | . . . . Garrison Access . | . . . . Data Cores Recovered . | . . . . Used . | . . . . Hacking Detections 9 | . 9 . . Full Trace Events 4 | . 4 . . Feedback Events . | . . . . Feedback Blocked . | . . . . Robot Schematics Acquired . | . . . . Robots Built . | . . . . Authchips . | . . . . Time . | . . . . Total Robot Build Rating . | . . . . Part Schematics Acquired . | . . . . Parts Built . | . . . . Authchips . | . . . . Time . | . . . . Total Part Build Rating . | . . . . Part Studies Acquired . | . . . . Parts Repaired . | . . . . Time . | . . . . Parts Recycled . | . . . . Recycled Matter . | . . . . Retrieved Matter . | . . . . Retrieved Components 9 | . 9 . . Parts Scanalyzed . | . . . . Part Schematics Acquired . | . . . . Parts Damaged . | . . . . Bothacking | -11 -10 -10 -8 ------------ Run | Yrd Mat Sub Scr Used RIF Installer . | . . . . Robots Hacked . | . . . . Non-combat . | . . . . Combat . | . . . . Robot Hacks Applied . | . . . . Relay Couplers Released . | . . . . Fabnet Peak Effective % . | . . . . Robots Rewired . | . . . . Allies Hacked . | . . . . Hacks Repelled . | . . . . Allies | -11 -10 -10 -8 -------- Run | Yrd Mat Sub Scr Total Allies . | . . . . Largest Group . | . . . . Highest-Rated Group . | . . . . Highest-Rated Ally . | . . . . Total Orders . | . . . . Ally Attacks . | . . . . Total Damage . | . . . . Kills . | . . . . Allies Corrupted . | . . . . Allies Melted . | . . . . Intel | -11 -10 -10 -8 ------- Run | Yrd Mat Sub Scr Active Infowar (turns) 1066 | 16 1050 . . Terrain 1066 | 16 1050 . . Robot Analysis Total 6 | . 6 . . Derelict Logs Recovered 1 | . . . 1 Drone Launches . | . . . . Drone Recoveries . | . . . . Exploration | -11 -10 -10 -8 ------------- Run | Yrd Mat Sub Scr Turns Passed 5583 | 188 1375 1012 3008 Spaces Moved 3750 | 111 808 522 2309 Core 17 | 17 . . . Treads . | . . . . Legs 1806 | 94 808 522 382 Wheels 1927 | . . . 1927 Hover . | . . . . Flight . | . . . . Fastest Speed 50 | 50 120 190 110 Average Speed 136 | 125 129 190 126 Slowest Speed 200 | 200 190 190 190 Overloaded Moves . | . . . . Propulsion Burnouts . | . . . . Robots Hopped . | . . . . Potential Cave-ins 3 | . . . 3 Cave-ins Triggered . | . . . . Exploration Rate (%) 54 | 5 97 20 94 Regions Visited 3 Branch Regions 2 Pre-discovered Areas 1 | . 1 . . Known Exits Taken . | . . . . Unknown Exits Taken 3 | 1 1 1 . Scrap Searched 4 | . . . 4 Spaces Dug 5 | . 2 . 3 Terrain Destroyed 22 | . 19 . 3 Melee 3 | . . . 3 Projectile 2 | . 2 . . AOE 17 | . 17 . . Terrain Rammed . | . . . . Walls Destroyed . | . . . . Machines Disabled . | . . . . Actions | -11 -10 -10 -8 --------- Run | Yrd Mat Sub Scr Total 4108 | 135 1056 541 2376 Wait 151 | . 135 16 . Move 3747 | 110 807 521 2309 Hop . | . . . . Pick Up 50 | 6 21 1 22 Fast Attach 12 | 7 3 1 1 Attach 7 | . 6 . 1 Detach 2 | . 2 . . Swap 28 | . 14 . 14 Drop 41 | . 20 1 20 Fire 61 | 12 48 1 . Melee 9 | . . . 9 Ram . | . . . . Kick . | . . . . Crush . | . . . . Escape Stasis . | . . . . Rewire . | . . . . Trap . | . . . . Miscellaneous . | . . . . Route ------- -11/Scrapyard -10/Materials (discovered 5 exits: [*Mat x3] / [*Min] / *Sub) -10/Subcaves (discovered 3 exits: [*Mat x2] / *Scr) -8/Scraptown (discovered 2 exits: [*Fac x2]) History --------- Turn | Location | Event 23 | -11/Scrapyard | Discovered new exit (range 15) 189 | -11/Scrapyard | Entered Materials 309 | -10/Materials | Build established: Mutant 414 | -10/Materials | Discovered new exit (range 16) 538 | -10/Materials | Discovered new exit (range 9) 588 | -10/Materials | Discovered new exit (range 7) 654 | -10/Materials | Discovered new exit (range 12) 742 | -10/Materials | Discovered new exit (range 16) 1238 | -10/Materials | Central database locked down 1564 | -10/Materials | Entered Subcaves 1564 | -10/Subcaves | Discovered new exit (range 6) 1565 | -10/Subcaves | Approached by a straggling Scientist 1629 | -10/Subcaves | Discovered new exit (range 9) 1657 | -10/Subcaves | Visited Clippyterm 1663 | -10/Subcaves | Learned Research security intel 1663 | -10/Subcaves | Learned Factory garrison access intel 2576 | -10/Subcaves | Entered Scraptown 2576 | -8/Scraptown | System corruption cleaned by C-Scrubber 2702 | -8/Scraptown | Heard Great Nut preacher, LISTEN AND RECITE! 2877 | -8/Scraptown | Visited The Evicted 2962 | -8/Scraptown | Visited Red Mages 3384 | -8/Scraptown | Scanned Subdweller tech in exchange for log data 3388 | -8/Scraptown | Learned Research emergency access door positions 3415 | -8/Scraptown | Discovered new exit (range 3) 3536 | -8/Scraptown | Visited CPS Storage 3983 | -8/Scraptown | Visited Awakened 4006 | -8/Scraptown | Visited CR-KLE's Repair Center 4030 | -8/Scraptown | Visited UFD Registry 4040 | -8/Scraptown | Visited Assassins FH 4087 | -8/Scraptown | Visited Fellowship of the Rings 4141 | -8/Scraptown | Registered with UFD as "Flakunit" 4203 | -8/Scraptown | CR-KLE repaired 5 parts 4320 | -8/Scraptown | Visited Science Guys 4357 | -8/Scraptown | Received an X-ray algorithm 4361 | -8/Scraptown | Visited Curators Association 4406 | -8/Scraptown | Visited Scrap Suit Storage 4419 | -8/Scraptown | Found Scrap Suit 4654 | -8/Scraptown | Visited Junk Repository 4710 | -8/Scraptown | Visited Scrapoid Pod Storage 4717 | -8/Scraptown | Found Scrapoid Pod 4749 | -8/Scraptown | Visited Cartography Club 4771 | -8/Scraptown | Found Surveybot 17 Chip 4917 | -8/Scraptown | Visited Junk Repository 4997 | -8/Scraptown | Visited Chapter 10 5210 | -8/Scraptown | Discovered new exit (range 5) 5494 | -8/Scraptown | Met Optimus 5494 | -8/Scraptown | Accepted into 0bPrime 5554 | -8/Scraptown | Attacked by Scraptown defenders 5561 | -8/Scraptown | Core integrity fell below 50% 5579 | -8/Scraptown | Core integrity fell below 20% 5584 | -8/Scraptown | Destroyed by Optimus with Helical Railgun Last Messages --------------- walls and earth have a slight glow to them. Consecutive moves through these unstable areas may cause a cave-in, but only if doing so for extended periods. Tunneling a short distance between rooms is safe unless the area was destabilized by an explosion. 05560_ Penetrated by Slug. 05562_ Slug penetrates Earth. 05569_ Com. Wheel destroyed. 05571_ Penetrated by Slug. 05573_ Slug penetrates Earth. 05575_ Penetrated by Slug. 05575_ Slug penetrates Earth. 05575_ Penetrated by Slug. 05578_ Slug penetrates Earth. 05580_ Slug penetrates Reinforced Barrier. 05580_ Slug penetrates Earth. 05582_ Penetrated by Slug. 05584_ Com. Wheel destroyed. 05584_ Penetrated by Slug. Map ----- +----------------------------------------------------+ | ????#"" "## "#???????????????????????? | | ??###"" "## "#???????????????????????? | | ### #"" "##= *"#???????????????????????? | | "#???????????????????????? | | "## "#???????????????????????? | | ### #"" "## "#???????????????????????? | | ??###"" "##"""""#???????????????????????? | | ????#"" "########???????????????????????? | | ????#"" "#??????????????????????????????? | | ????#"" "#??????????????????????????????? | | #####"" "########???????????????????????? | | """"""" "## !|!#???????????????????????? | | """"""" !!#???????????????????????? | | "## ####???????????????????????? | | "## ! #???????????????????????? | | "## [ !#???????????????????????? | | ## !#???????????????????????? | | # ####???????????????????????? | | """ """""" ## * #????##?????????????????? | | ### ###### ## * #???? #?????????????????? | | #?# ########??## ??????????????????? | | ##?# #?????????# ??????????????????? | | !"#?# #?????????# #??????????????????? | | ! !"#?# #????????##r##?????????????????? | | "#?# #????????# #3##????????????????? | | ! !"#?# ##########"#@;#????????????????? | | ! [ !"#?# # #???????????????? | | X####?# ## #??????????????? | | "#????# # # #?????????????? | | "????# # # #????????????? | | #####????# # ####?#????????????? | | ?????????# ############;#?????????????????? | | ########## #####??????# #?????????????????? | | #"""##"|"# """"#??????# #?????????????????? | | #"" ##" # "" "#??????? ??????????????????? | | "#??????? ??????????????????? | | ] " "#??????? ??????????????????? | | !! """"#??????? ??????????????????? | | #!! ##"" ## ######??????? ??????????????????? | | #"""##"""####???????????? ??????????????????? | | ##########??????????????? ??????????????????? | | ????????????????????????????????????????????? | | ????????????????????????????????????????????? | | ????????????????????????????????????????????? | | ????????????????????????????????????????????? | | ????????????????????????????????????????????? | | ????????????????????????????????????????????? | | ????????????????????????????????????????????? | | ????????????????????????????????????????????? | | ????????????????????????????????????????????? | +----------------------------------------------------+ Best States ------------- Heat Dissipation 25 Energy Generation 18 Energy Capacity 310 Matter Stores 300 Matter Capacity 300 Sight Range 16 Terrain Scan Range 16 Terrain Scan Density 10 Armor Coverage 225 Evasion (%) 55 Targeting Accuracy 6 Item Schematics ----------------- None Robot Schematics ------------------ None Fabricated ------------ Nothing Repaired ---------- Nothing Studied --------- None Alien Tech Used ----------------- None Achievements -------------- None Challenges ------------ None Game ------ Seed TrackerAlloyCleaver Manual? 0 Play Time 00:49:10 Cumulative 664.8 hours Start 2025.11.02 @ 04:55:38 End 2025.11.02 @ 05:44:51 Sessions 1 Manual Loads 0 Difficulty Rogue Special Mode None Game No. 455 Rogue 455 Adventurer 0 Explorer 0 Win Type - Total 1 Types 1/0/0/0/0/0/0/0/0/0 Lore% 54 Gallery% 65 Achievement% 36 Wizard Run 0 Options --------- Layout 1 ASCII 0 Keyboard 0 Movement Mouse Keybinds 0 Fullscreen 1 Font 20/SmallcapsGlow Map View 54x42 Zoom Use 0% Tactical HUD 1 Map Filters NONE Filters NONE Steam 1 RUN: 9048e2e2-9494-456b-ac72-1825cc400e4d